Cogmind - Beta 17 @@@ ROGUE MODE // 2026.08.18 @ 18:50:44 Player: LandRaider Result: Destroyed by D-53 Grenadier with Mini Grenade Launcher Performance ------------- Evolutions (0) 0 Regions Visited (2) 400 Robots Destroyed (10) 50 Value Destroyed (140) 140 Prototype IDs (0) 0 Alien Tech Used (0) 0 Bonus (0) 0 TOTAL SCORE: 590 Bonus ------- None Cogmind --------- Core Integrity 0/250 Matter 165/300 Energy 250/250 System Corruption 0% Temperature Cool (0) Movement Rolling (115) Ox1 Location -10/Mines Parts ------- > --- POWER (1) -------- Ion Engine > --- PROPULSION (2) --- Compact Wheel > --- UTILITY (2) ------ Large Storage Unit Targeting Computer > --- WEAPON (2) ------- Rocket Launcher > --- INVENTORY (15) --- Light Treads Light Treads Scrap Suit Small Storage Unit Sensor Array Targeting Computer Medium Laser Medium Laser Light Cannon Peak State ------------ > --- POWER ------------ Ion Engine > --- PROPULSION ------- Compact Wheel > --- UTILITY ---------- Large Storage Unit Targeting Computer > --- WEAPON ----------- Light Assault Rifle Rocket Launcher > --- INVENTORY -------- Light Treads Light Treads Scrap Suit Small Storage Unit Sensor Array Targeting Computer Medium Laser Light Cannon [Rating: 8] Favorites ----------- Power Ion Engine Engine Ion Engine Propulsion Compact Wheel Wheel Compact Wheel Utility Targeting Computer Storage Small Storage Unit Processor Targeting Computer Weapon Light Assault Rifle Energy Gun Medium Laser Ballistic Gun Light Assault Rifle Launcher Rocket Launcher Build | -11 -10 -10 ------- Run | Yrd Mat Min Slots Evolved . | . . . Power . | . . . Propulsion . | . . . Utility . | . . . Weapon . | . . . Parts Attached 10 | 6 2 2 Power 2 | 1 1 . Engine 2 | 1 1 . Core . | . . . Reactor . | . . . Propulsion 2 | 2 . . Treads . | . . . Leg . | . . . Wheel 2 | 2 . . Hover . | . . . Flight . | . . . Utility 3 | 1 1 1 Device . | . . . Storage 2 | 1 . 1 Processor 1 | . 1 . Hackware . | . . . Protection . | . . . Artifact . | . . . Weapon 3 | 2 . 1 Energy Gun 1 | 1 . . Energy Cannon . | . . . Ballistic Gun 1 | 1 . . Ballistic Cannon . | . . . Launcher 1 | . . 1 Special Weapon . | . . . Impact Weapon . | . . . Slashing Weapon . | . . . Piercing Weapon . | . . . Special Melee Weapon . | . . . Unidentified Prototypes . | . . . Parts Lost 3 | . 2 1 Power 1 | . 1 . Propulsion 1 | . 1 . Utility . | . . . Weapon 1 | . . 1 Highest Loss Streak 2 | . 2 1 To Critical Strikes 1 | . 1 . Average Backups 6 | 2 5 8 Power . | . . . Propulsion 1 | 1 2 2 Utility 1 | . 1 3 Weapon 2 | . 1 3 Tool/Special . | . . . Unused Backups 7 | . . 7 Power . | . . . Propulsion 2 | . . 2 Utility 2 | . . 2 Weapon 3 | . . 3 Tool/Special . | . . . Average Slot Usage (%) 88 | . 91 85 Engine 13 | . 12 14 Wheel 19 | . 23 14 Storage 14 | . 14 14 Processor 12 | . 11 14 Energy Gun 8 | . 14 2 Ballistic Gun 14 | . 14 14 Launcher 5 | . . 11 Peak Build Rating 8 | 6 7 8 Average Rating 6 | 4 6 7 On Entrance 4 | . 6 6 Avg Prop Armor Cover (%) . | . . . Naked Turns . | . . . Heaviest Build 30 | 13 13 30 Greatest Support 32 | 32 32 16 Greatest Overweight (x) 1 | . . 1 Average Overweight (x) . | . . . Largest Inventory Capacity 15 | 8 8 15 Average Capacity 9 | 7 8 12 Most Carried 10 | 4 8 10 Average Carried 6 | 2 5 9 Final Capacity 15 | 8 8 15 Final Carried 10 | 4 8 10 Class Distribution -------------------- 100% | Mutant Dominant Class ---------------- Mutant | -10/Materials Mutant | -10/Mines Resources | -11 -10 -10 ----------- Run | Yrd Mat Min Matter Collected 290 | 207 83 . Remotely . | . . . Salvage Created 196 | . 178 18 Parts 17 | . 14 3 Haulers Intercepted . | . . . Recyclers Shooed . | . . . Parts Field Recycled . | . . . Retrieved Matter . | . . . Parts Self-Destructed . | . . . Prevented . | . . . Parts Restored . | . . . Kills | -11 -10 -10 ------- Run | Yrd Mat Min Combat Hostiles Destroyed 8 | . 8 . Guns 8 | . 8 . Classes Destroyed 3 | . 2 1 Worker 2 | . . 2 Swarmer 6 | . 6 . Grunt 2 | . 2 . Best Kill Streak 3 | . 3 2 Combat Bots Only 3 | . 3 . Max Kills in Single Turn 1 | . 1 1 Gunslinging . | . . . Exploded . | . . . Melee . | . . . Uniques/NPCs Destroyed . | . . . Combat | -11 -10 -10 -------- Run | Yrd Mat Min Hostile Shots Fired 48 | . 42 6 Missed 8 | . 8 . Hits 40 | . 34 6 Projectile 40 | . 34 6 AOE 8 | . . 8 Critical Strikes 1 | . 1 . Damage Taken 597 | . 282 315 Core 261 | . 68 193 Absorbed by Shields . | . . . Core Remaining (%) 100 | 100 . . Volleys Fired 35 | . 25 10 Largest 2 | . 2 1 Hottest 70 | . 70 33 Shots Fired 58 | . 48 10 Gun 48 | . 48 . Cannon . | . . . Launcher 10 | . . 10 Special . | . . . Kinetic 25 | . 25 . Thermal 23 | . 23 . Explosive 10 | . . 10 Electromagnetic . | . . . Robot Hit Streak 6 | . 6 . Robot Miss Streak 2 | . 2 . Penetration Max . | . . . Secondary Targets . | . . . Shots Hit Robots 29 | . 29 . Core Hits 22 | . 14 8 Critical Kills . | . . . Critical Parts Destroyed . | . . . Critical Strikes 1 | . 1 . Burn 1 | . 1 . Melee Attacks . | . . . Impact . | . . . Slashing . | . . . Piercing . | . . . Sneak Attacks . | . . . Combat Hostiles . | . . . Follow-up Attacks . | . . . Damage Inflicted 402 | . 300 102 Guns 300 | . 300 . Cannons . | . . . Explosions 102 | . . 102 Melee . | . . . Ramming . | . . . Kinetic 116 | . 116 . Thermal 184 | . 184 . Explosive 102 | . . 102 Electromagnetic . | . . . Impact . | . . . Slashing . | . . . Piercing . | . . . Highest Corruption . | . . . Average Corruption . | . . . Corruption Purged . | . . . Corruption Blocked . | . . . Overload Shots . | . . . Overflow Damage . | . . . Projectiles . | . . . Explosions . | . . . Melee . | . . . Knockbacks . | . . . Impact . | . . . Kinetic . | . . . Secondary . | . . . Self-Inflicted Damage 16 | . . 16 Shots 1 | . . 1 Rammed . | . . . Targets Rammed . | . . . Kicked . | . . . Crushed . | . . . Highest Temperature 100 | . 100 . Average Temperature 47 | . 47 . Received Heat Transfer 24 | . 24 . Siege Activations . | . . . Martial Activations . | . . . Shielding Activations . | . . . Robots Disrupted . | . . . Combat Hostiles . | . . . Robots Corrupted . | . . . Combat Hostiles . | . . . Parts Fried . | . . . Impact Corruptions . | . . . Robots Melted . | . . . Combat Hostiles . | . . . Parts Melted 3 | . 3 . Heat Transferred 629 | . 629 . Parts Sabotaged . | . . . Parts Stolen . | . . . Parts Stripped . | . . . Power Chain Reactions . | . . . Alert | -11 -10 -10 ------- Run | Yrd Mat Min Maximum Alert Level . | . . . Low Security (%) 100 | 100 100 100 Level 1 . | . . . Level 2 . | . . . Level 3 . | . . . Level 4 . | . . . Level 5 . | . . . High Security . | . . . Max Security . | . . . Peak Influence 125 | . 125 39 Initial 36 | . . 36 Average 40 | . 69 17 Influence Increases 277 | . 214 63 Destroy 0b10 Robot/C 160 | . 160 . Destroy 0b10 Robot/NC 10 | . . 10 Destroy Leader 30 | . 30 . Successful Hack 9 | . 9 . Disable Machine 15 | . . 15 Destroy Structure 38 | . . 38 Lose Combat Pursuer 15 | . 15 . Influence Decreases 263 | . 119 144 Entered New Map 59 | . . 59 Time Decay 177 | . 99 78 Lost Part 27 | . 20 7 Squads Dispatched 3 | . 3 . Investigation . | . . . Extermination . | . . . Reinforcement 3 | . 3 . Assault . | . . . Garrison . | . . . Intercept . | . . . Searches Triggered . | . . . Construction Impeded . | . . . Haulers Reinforced . | . . . Active Scanning Responses . | . . . Cargo Convoy Interrupts . | . . . Stealth | -11 -10 -10 --------- Run | Yrd Mat Min Distress Signals 1 | . 1 . Communications Jammed . | . . . Distress Signals . | . . . Times Spotted 15 | . 13 2 Peak Tracking Total 4 | . 4 2 Tactical Retreats 1 | . 1 . Traps | -11 -10 -10 ------- Run | Yrd Mat Min Traps Triggered . | . . . Indirectly . | . . . Trap Hack Attempts . | . . . Triggered . | . . . Disarmed . | . . . Reprogrammed . | . . . Reused . | . . . Traps Extracted . | . . . Installed . | . . . Triggered . | . . . Machines | -11 -10 -10 ---------- Run | Yrd Mat Min Machines Disabled 1 | . . 1 Max in Single Turn 1 | . . 1 Machines Repaired . | . . . Machines Dismantled . | . . . Machines Sabotaged . | . . . Overloaded Fab Kills . | . . . Hacking | -11 -10 -10 --------- Run | Yrd Mat Min Machines Accessed 3 | . 3 . Terminals 3 | . 3 . Fabricators . | . . . Repair Stations . | . . . Recycling Units . | . . . Scanalyzers . | . . . Garrison Access . | . . . Total Hacks 11 | . 11 . Successful 7 | . 7 . Failed 4 | . 4 . Catastrophic 1 | . 1 . Database Lockouts . | . . . Manual 7 | . 7 . Terminals 11 | . 11 . Fabricators . | . . . Repair Stations . | . . . Recycling Units . | . . . Scanalyzers . | . . . Garrison Access . | . . . Terminal Hacks 5 | . 5 . Record 3 | . 3 . Emergency Access Points 1 | . 1 . Locate Traps 1 | . 1 . Fabricator Hacks . | . . . Repair Station Hacks . | . . . Recycling Unit Hacks . | . . . Scanalyzer . | . . . Garrison Access Hacks . | . . . Unauthorized Hacks 2 | . 2 . Terminals 2 | . 2 . Botnet 2 | . 2 . Fabricators . | . . . Repair Stations . | . . . Recycling Units . | . . . Scanalyzers . | . . . Garrison Access . | . . . Data Cores Recovered . | . . . Used . | . . . Hacking Detections 3 | . 3 . Full Trace Events . | . . . Feedback Events . | . . . Feedback Blocked . | . . . Robot Schematics Acquired . | . . . Robots Built . | . . . Authchips . | . . . Time . | . . . Total Robot Build Rating . | . . . Part Schematics Acquired . | . . . Parts Built . | . . . Authchips . | . . . Time . | . . . Total Part Build Rating . | . . . Part Studies Acquired . | . . . Parts Repaired . | . . . Time . | . . . Parts Recycled . | . . . Recycled Matter . | . . . Retrieved Matter . | . . . Retrieved Components . | . . . Parts Scanalyzed . | . . . Part Schematics Acquired . | . . . Parts Damaged . | . . . Bothacking | -11 -10 -10 ------------ Run | Yrd Mat Min Used RIF Installer . | . . . Robots Hacked . | . . . Non-combat . | . . . Combat . | . . . Robot Hacks Applied . | . . . Relay Couplers Released . | . . . Fabnet Peak Effective % . | . . . Robots Rewired . | . . . Allies Hacked . | . . . Hacks Repelled . | . . . Allies | -11 -10 -10 -------- Run | Yrd Mat Min Total Allies . | . . . Largest Group . | . . . Highest-Rated Group . | . . . Highest-Rated Ally . | . . . Total Orders . | . . . Ally Attacks . | . . . Total Damage . | . . . Kills . | . . . Allies Corrupted . | . . . Allies Melted . | . . . Intel | -11 -10 -10 ------- Run | Yrd Mat Min Active Infowar (turns) . | . . . Robot Analysis Total . | . . . Derelict Logs Recovered . | . . . Drone Launches . | . . . Drone Recoveries . | . . . Exploration | -11 -10 -10 ------------- Run | Yrd Mat Min Turns Passed 472 | 57 226 189 Spaces Moved 338 | 46 146 146 Core 2 | 2 . . Treads . | . . . Legs . | . . . Wheels 336 | 44 146 146 Hover . | . . . Flight . | . . . Fastest Speed 50 | 50 100 100 Average Speed 103 | 97 100 109 Slowest Speed 115 | 100 100 115 Overloaded Moves . | . . . Propulsion Burnouts . | . . . Robots Hopped . | . . . Potential Cave-ins . | . . . Cave-ins Triggered . | . . . Exploration Rate (%) 19 | 4 30 24 Regions Visited 2 Branch Regions 1 Pre-discovered Areas . | . . . Known Exits Taken . | . . . Unknown Exits Taken 2 | 1 1 . Scrap Searched . | . . . Spaces Dug . | . . . Terrain Destroyed 115 | . . 115 Melee . | . . . Projectile . | . . . AOE 115 | . . 115 Terrain Rammed . | . . . Walls Destroyed . | . . . Machines Disabled . | . . . Actions | -11 -10 -10 --------- Run | Yrd Mat Min Total 405 | 55 182 168 Wait 6 | . 5 1 Move 336 | 45 145 146 Hop . | . . . Pick Up 14 | 4 5 5 Fast Attach 7 | 6 1 . Attach 1 | . 1 . Detach . | . . . Swap 2 | . . 2 Drop 4 | . . 4 Fire 35 | . 25 10 Melee . | . . . Ram . | . . . Kick . | . . . Crush . | . . . Escape Stasis . | . . . Rewire . | . . . Trap . | . . . Miscellaneous . | . . . Route ------- -11/Scrapyard -10/Materials -10/Mines History --------- Turn | Location | Event 27 | -11/Scrapyard | Discovered new exit (range 16) 58 | -11/Scrapyard | Entered Materials 246 | -10/Materials | Discovered new exit (range 9) 284 | -10/Materials | Entered Mines 291 | -10/Mines | Received a Rocket Launcher from a helpful Derelict 334 | -10/Mines | Build established: Mutant 354 | -10/Mines | Found a Scrap Suit stashed away for nefarious purposes 358 | -10/Mines | Found Scrap Suit 445 | -10/Mines | Assembled infested the area 450 | -10/Mines | Assisted by a Guerilla fighting off Assembled 470 | -10/Mines | Core integrity fell below 50% 473 | -10/Mines | Destroyed by D-53 Grenadier with Mini Grenade Launcher Last Messages --------------- 00356_ Dropped Med. Laser. 00358_ Acquired Scrap Suit. 00361_ Acquired Med. Laser. 00375_ K-01 Serf collects debris. 00385_ K-01 Serf cleans the Plasma Injector. 00395_ K-01 Serf collects debris. 00420_ Laser Drill disabled. 00445_ ALERT: Infestation in the mines, dispatching Demolisher response squad. 00450_ A derelict emerges from the shadows: "You need to get out of here! I've been tracking a group of Assembled to figure out where they're coming from, and they're closing on this area, come on!" 00460_ C-45 Heavy ARC bursts open, deploying its payload. 00460_ D-53 Grenadier unfolds itself. 00465_ K8-MSH(h): "I'll hold them off! Go on ahead or try to find another way!" 00467_ HV Slug penetrates Wall. 00469_ K8-MSH(h) destroyed. 00471_ Lgt. Assault Rifle destroyed. 00471_ K-01 Serf destroyed. Map ----- +----------------------------------------------------+ | | | | | | | | | | | | | | | | | | | | | ?????????????????????????????????????????????????? | | ??????????????#######????????????????????????????? | | ??????????????# ????????????????????????????? | | ??????????????# #???????????????????????????? | | ??????????????# #???????????????????????????? | | ??????????????# #??????????????????###??????? | | ???????##?????# ??????????????????# ###???? | | ??????? #????# #####??????????### ##?? | | ??????? #????# #?????????## # ## | | ???????# #????# ### #?????????# # | | ???????# #????########### ##???###?## | | ???????# #???????????## ##?? ## | | ???????# #??????????## #### ### | | ???????# ############ ## ## # | | ???????# % # ## # ### | | ???????# # @ #?????###### | | ???????#######%= """ #??????????# | | ????????????# % d """ #??????????# | | ????????????# d """ #??????????#] | | ????????????## #???????????# | | ?????????????# #########???# | | ?????????????# ###### ## ## ##??# | | ?????????????# # ##?????# ##### ##?# | | ?????????????#?####???????# #???## ### | | ??????????????????????????# #????## ## | | ??????????????????????????# t#?????# ## | | ??????????????????????????# #?????## ## | | ?????????????????????????? #??????# ### ## | | ?????????????????????????? #??????## ##?# ## | | ?????????????????????????? ???????# ###??# ## | | ?????????????????????????? ???????# #????# ## | | ????????????????????????? ???????# #????# ## | | ????????????????????????? ???????# #???## ## | | ????????????????????????? ???????# #???# | | ????????????????????????? #???????# #???# | | ?????????????????????????? #????????# #???## | | ?????????????????????????????????????? #????## | | ?????????????????????????????????????? ??????## | | ??????????????????????????????????????#???????## | | ???????????????????????????????????????????????## | +----------------------------------------------------+ Best States ------------- Heat Dissipation 25 Energy Generation 10 Energy Capacity 250 Matter Stores 300 Matter Capacity 300 Sight Range 16 Terrain Scan Density 10 Evasion (%) 40 Targeting Accuracy 5 Item Schematics ----------------- None Robot Schematics ------------------ None Fabricated ------------ Nothing Repaired ---------- Nothing Studied --------- None Alien Tech Used ----------------- None Achievements -------------- None Challenges ------------ None Game ------ Seed SigixPhaseSteel Manual? 0 Play Time 00:10:38 Cumulative 81.1 hours Start 2026.08.18 @ 18:21:22 End 2026.08.18 @ 18:50:44 Sessions 1 Manual Loads 0 Difficulty Rogue Special Mode None Game No. 74 Rogue 72 Adventurer 2 Explorer 0 Win Type - Total 0 Types 0/0/0/0/0/0/0/0/0/0 Lore% 43 Gallery% 36 Achievement% 28 Wizard Run 0 Options --------- Layout 0 ASCII 0 Keyboard 0 Movement Mouse Keybinds 0 Fullscreen 2 Font 24/Smallcaps Map View 76x50 Zoom Use 0% Tactical HUD 1 Map Filters NONE Filters NONE Steam 1 RUN: cbb4881f-9ff4-49fb-ab82-280e78006097